Cogmind - Beta 12 @@@ ROGUE MODE // 2023.06.18 @ 22:06:28 Player: cptwinky Result: Destroyed by D-53 Grenadier with Mini Grenade Launcher Performance ------------- Evolutions (0) 0 Regions Visited (2) 400 Robots Destroyed (12) 60 Value Destroyed (342) 342 Prototype IDs (1) 20 Alien Tech Used (0) 0 Bonus (0) 0 TOTAL SCORE: 822 Bonus ------- None Cogmind --------- Core Integrity 0/250 Matter 165/300 Energy 100/100 System Corruption 4% Temperature Cool (2) Movement Treading (480) Ox4 Location -10/Mines Parts ------- > --- POWER (1) -------- (None) > --- PROPULSION (2) --- Light Treads Armored Wheel > --- UTILITY (2) ------ Huge Storage Unit > --- WEAPON (2) ------- Improved Light Cannon Improved Light Cannon > --- INVENTORY (25) --- Heavy Ion Engine Heavy Ion Engine Light Treads Light Treads Armored Wheel Armored Wheel Armored Wheel Armored Wheel Armored Wheel Armored Wheel Armored Wheel Machine Analyzer EM Shotgun EM Shotgun EM Shotgun EM Shotgun Beam Cannon Assault Rifle Datajack Mining Laser Plasma Cutter Peak State ------------ > --- POWER ------------ Heavy Ion Engine > --- PROPULSION ------- Light Treads Armored Wheel > --- UTILITY ---------- Heat Sink Huge Storage Unit > --- WEAPON ----------- Improved Light Cannon Improved Light Cannon > --- INVENTORY -------- Heavy Ion Engine Heavy Ion Engine Light Treads Armored Wheel Armored Wheel Armored Wheel Armored Wheel Armored Wheel Armored Wheel Armored Wheel Machine Analyzer EM Shotgun EM Shotgun EM Shotgun Small Laser Beam Cannon Assault Rifle Light Assault Rifle Improved Light Cannon Improved Light Cannon Mining Laser Plasma Cutter [Rating: 16] Favorites ----------- Power Heavy Ion Engine Engine Heavy Ion Engine Propulsion Light Treads Treads Light Treads Leg Aluminum Leg Wheel Armored Wheel Utility Huge Storage Unit Device Heat Sink Storage Huge Storage Unit Weapon Improved Light Cannon Energy Gun Small Laser Ballistic Gun Light Assault Rifle Ballistic Cannon Improved Light Cannon Launcher Grenade Launcher Build | -11 -10 -10 ------- Run | Jun Mat Min Slots Evolved . | . . . Power . | . . . Propulsion . | . . . Utility . | . . . Weapon . | . . . Parts Attached 20 | 2 12 6 Power 1 | . 1 . Engine 1 | . 1 . Core . | . . . Reactor . | . . . Propulsion 8 | 2 6 . Treads 5 | 2 3 . Leg . | . . . Wheel 3 | . 3 . Hover . | . . . Flight . | . . . Utility 4 | . 3 1 Device 2 | . 1 1 Storage 2 | . 2 . Processor . | . . . Hackware . | . . . Protection . | . . . Artifact . | . . . Weapon 7 | . 2 5 Energy Gun . | . . . Energy Cannon . | . . . Ballistic Gun . | . . . Ballistic Cannon 6 | . 2 4 Launcher 1 | . . 1 Special Weapon . | . . . Impact Weapon . | . . . Slashing Weapon . | . . . Piercing Weapon . | . . . Special Melee Weapon . | . . . Unidentified Prototypes 1 | . 1 . Parts Lost 6 | . . 6 Power 1 | . . 1 Propulsion . | . . . Utility 2 | . . 2 Weapon 3 | . . 3 Highest Loss Streak 3 | . . 3 To Critical Strikes . | . . . Average Slot Usage (%) 94 | . 95 88 Engine 13 | . 14 13 Treads 19 | . 20 14 Wheel 8 | . 6 14 Device 5 | . 5 3 Storage 17 | . 18 14 Energy Gun 7 | . 9 . Ballistic Gun 7 | . 9 . Ballistic Cannon 12 | . 9 27 Naked Turns . | . . . Heaviest Build 97 | 12 97 97 Greatest Support 40 | 40 40 12 Greatest Overweight (x) 8 | . 8 8 Average Overweight (x) 4 | . 3 7 Largest Inventory Capacity 25 | 8 25 25 Average Capacity 20 | 8 19 25 Most Carried 24 | 6 23 24 Average Carried 15 | 6 14 23 Final Capacity 25 | 8 25 25 Final Carried 23 | 6 23 21 Class Distribution -------------------- 100% | Mutant Dominant Class ---------------- Mutant | -10/Materials Mutant | -10/Mines Resources | -11 -10 -10 ----------- Run | Jun Mat Min Matter Collected 495 | 175 184 136 Remotely . | . . . Salvage Created 381 | . 260 121 Parts 24 | . 21 3 Haulers Intercepted . | . . . Recyclers Shooed 3 | . 3 . Parts Field Recycled . | . . . Retrieved Matter . | . . . Parts Self-Destructed . | . . . Prevented . | . . . Kills | -11 -10 -10 ------- Run | Jun Mat Min Combat Hostiles Destroyed 23 | . 7 16 Guns 7 | . 7 . Cannons 11 | . . 11 AOE 5 | . . 5 Classes Destroyed 6 | . 4 2 Mechanic 1 | . 1 . Watcher 1 | . 1 . Swarmer 3 | . 3 . Grunt 6 | . 4 2 Demolisher 1 | . . 1 Assembled 13 | . . 13 Best Kill Streak 13 | . 3 13 Combat Bots Only 13 | . 3 13 Max Kills in Single Turn 3 | . 1 3 Gunslinging . | . . . Exploded 3 | . . 3 Melee . | . . . Uniques/NPCs Destroyed . | . . . Combat | -11 -10 -10 -------- Run | Jun Mat Min Damage Taken 1212 | . 151 1061 Core 271 | . 58 213 Absorbed by Shields . | . . . Regen/Repaired (Parts) 45 | . 45 . Core Remaining (%) 100 | 100 . . Volleys Fired 55 | . 28 27 Largest 2 | . 2 2 Hottest 78 | . 78 78 Shots Fired 108 | . 56 52 Gun 52 | . 52 . Cannon 53 | . 4 49 Launcher 3 | . . 3 Special . | . . . Kinetic 79 | . 30 49 Thermal 26 | . 26 . Explosive 3 | . . 3 Electromagnetic . | . . . Robot Hit Streak 12 | . 12 5 Robot Miss Streak 3 | . 3 3 Penetration Max . | . . . Secondary Targets . | . . . Shots Hit Robots 57 | . 35 22 Core Hits 40 | . 16 24 Critical Kills . | . . . Critical Parts Destroyed . | . . . Critical Strikes 1 | . . 1 Blast 1 | . . 1 Melee Attacks . | . . . Impact . | . . . Slashing . | . . . Piercing . | . . . Sneak Attacks . | . . . Combat Hostiles . | . . . Follow-up Attacks . | . . . Damage Inflicted 1265 | . 382 883 Guns 351 | . 351 . Cannons 494 | . 18 476 Explosions 407 | . . 407 Melee . | . . . Ramming 13 | . 13 . Kinetic 625 | . 149 476 Thermal 220 | . 220 . Explosive 407 | . . 407 Electromagnetic . | . . . Impact . | . . . Slashing . | . . . Piercing . | . . . Highest Corruption 4 | . . 4 Average Corruption 4 | . . 4 Corruption Purged . | . . . Corruption Blocked . | . . . Effects 6 | . . 6 Message Errors 1 | . . 1 Energy Discharges 1 | . . 1 Data Loss (minor) 2 | . . 2 Data Loss (major) 1 | . . 1 Misfires 1 | . . 1 Overload Shots . | . . . Overflow Damage 19 | . . 19 Projectiles . | . . . Explosions 19 | . . 19 Melee . | . . . Knockbacks 8 | . 1 7 Impact . | . . . Kinetic 8 | . 1 7 Secondary . | . . . Self-Inflicted Damage 91 | . . 91 Shots 3 | . . 3 Rammed 4 | . 4 . Targets Rammed 5 | . 5 . Kicked . | . . . Crushed 1 | . 1 . Highest Temperature 149 | . 71 149 Average Temperature 34 | . 23 44 Received Heat Transfer 166 | . 72 94 Siege Activations . | . . . Robots Corrupted . | . . . Combat Hostiles . | . . . Parts Fried . | . . . Impact Corruptions . | . . . Robots Melted . | . . . Combat Hostiles . | . . . Parts Melted . | . . . Heat Transferred 500 | . 500 . Parts Sabotaged . | . . . Parts Stolen . | . . . Parts Stripped . | . . . Power Chain Reactions . | . . . Missiles Intercepted . | . . . Alert | -11 -10 -10 ------- Run | Jun Mat Min Peak Influence 190 | . 190 58 Initial . | . . . Average 44 | . 44 45 Maximum Alert Level . | . . . Low Security (%) 100 | 100 100 100 Level 1 . | . . . Level 2 . | . . . Level 3 . | . . . Level 4 . | . . . Level 5 . | . . . High Security . | . . . Max Security . | . . . Squads Dispatched 4 | . 4 . Investigation 3 | . 3 . Extermination . | . . . Reinforcement 1 | . 1 . Assault . | . . . Garrison . | . . . Intercept . | . . . Searches Triggered . | . . . Construction Impeded . | . . . Haulers Reinforced . | . . . Active Scanning Responses . | . . . Cargo Convoy Interrupts . | . . . Stealth | -11 -10 -10 --------- Run | Jun Mat Min Distress Signals . | . . . Communications Jammed . | . . . Distress Signals . | . . . Times Spotted 31 | . 15 16 Peak Tracking Total 8 | . 3 8 Tactical Retreats 1 | . 1 . Traps | -11 -10 -10 ------- Run | Jun Mat Min Traps Triggered 2 | . 2 . Indirectly . | . . . Trap Hack Attempts . | . . . Triggered . | . . . Disarmed . | . . . Reprogrammed . | . . . Reused . | . . . Traps Extracted . | . . . Installed . | . . . Triggered . | . . . Machines | -11 -10 -10 ---------- Run | Jun Mat Min Machines Disabled . | . . . Max in Single Turn . | . . . Machines Repaired . | . . . Machines Sabotaged . | . . . Overloaded Fab Kills . | . . . Hacking | -11 -10 -10 --------- Run | Jun Mat Min Machines Accessed 7 | . 7 . Terminals 6 | . 6 . Fabricators . | . . . Repair Stations 1 | . 1 . Recycling Units . | . . . Scanalyzers . | . . . Garrison Access . | . . . Total Hacks 21 | . 21 . Successful 9 | . 9 . Failed 12 | . 12 . Catastrophic . | . . . Database Lockouts . | . . . Manual 15 | . 15 . Terminals 19 | . 19 . Fabricators . | . . . Repair Stations 2 | . 2 . Recycling Units . | . . . Scanalyzers . | . . . Garrison Access . | . . . Terminal Hacks 5 | . 5 . Robot Analysis 3 | . 3 . Locate Traps 2 | . 2 . Fabricator Hacks . | . . . Repair Station Hacks 2 | . 2 . Scan Component 1 | . 1 . Repair 1 | . 1 . Recycling Unit Hacks . | . . . Scanalyzer . | . . . Garrison Access Hacks . | . . . Unauthorized Hacks 2 | . 2 . Terminals 2 | . 2 . Assimilate 1 | . 1 . Botnet 1 | . 1 . Fabricators . | . . . Repair Stations . | . . . Recycling Units . | . . . Scanalyzers . | . . . Garrison Access . | . . . Data Cores Recovered . | . . . Used . | . . . Hacking Detections 6 | . 6 . Full Trace Events 1 | . 1 . Feedback Events . | . . . Feedback Blocked . | . . . Robot Schematics Acquired . | . . . Robots Built . | . . . Authchips . | . . . Time . | . . . Total Robot Build Rating . | . . . Part Schematics Acquired . | . . . Parts Built . | . . . Authchips . | . . . Time . | . . . Total Part Build Rating . | . . . Parts Repaired 1 | . 1 . Time 26 | . 26 . Parts Recycled . | . . . Recycled Matter . | . . . Retrieved Matter . | . . . Retrieved Components . | . . . Parts Scanalyzed . | . . . Part Schematics Acquired . | . . . Parts Damaged . | . . . Bothacking | -11 -10 -10 ------------ Run | Jun Mat Min Used RIF Installer . | . . . Robots Hacked . | . . . Non-combat . | . . . Combat . | . . . Robot Hacks Applied . | . . . Relay Couplers Released . | . . . Fabnet Peak Effective % . | . . . Robots Rewired . | . . . Allies Hacked . | . . . Hacks Repelled . | . . . Allies | -11 -10 -10 -------- Run | Jun Mat Min Total Allies . | . . . Largest Group . | . . . Highest-Rated Group . | . . . Highest-Rated Ally . | . . . Total Orders . | . . . Ally Attacks . | . . . Total Damage . | . . . Kills . | . . . Allies Corrupted . | . . . Allies Melted . | . . . Intel | -11 -10 -10 ------- Run | Jun Mat Min Robot Analysis Total 3 | . 3 . Derelict Logs Recovered . | . . . Drone Launches . | . . . Drone Recoveries . | . . . Exploration | -11 -10 -10 ------------- Run | Jun Mat Min Turns Passed 1675 | 3 1388 284 Spaces Moved 670 | 1 574 95 Core . | . . . Treads 270 | 1 269 . Legs . | . . . Wheels 400 | . 305 95 Hover . | . . . Flight . | . . . Fastest Speed 150 | 160 150 195 Average Speed 196 | 160 196 198 Slowest Speed 320 | 160 320 210 Overloaded Moves . | . . . Propulsion Burnouts . | . . . Robots Hopped . | . . . Cave-ins Triggered . | . . . Exploration Rate (%) 31 | 2 72 19 Regions Visited 2 Branch Regions 1 Pre-discovered Areas . | . . . Known Exits Taken . | . . . Unknown Exits Taken 2 | 1 1 . Scrap Searched 2 | . . 2 Spaces Dug 8 | . . 8 Terrain Destroyed 29 | . 1 28 Melee . | . . . Projectile 4 | . 1 3 AOE 25 | . . 25 Terrain Rammed . | . . . Walls Destroyed . | . . . Machines Disabled . | . . . Actions | -11 -10 -10 --------- Run | Jun Mat Min Total 919 | 2 778 139 Wait 129 | . 121 8 Move 668 | . 573 95 Hop . | . . . Pick Up 26 | . 24 2 Fast Attach 7 | . 5 2 Attach 4 | . 1 3 Detach 4 | . 4 . Swap 9 | 2 6 1 Drop 12 | . 11 1 Fire 55 | . 28 27 Melee . | . . . Ram . | . . . Kick . | . . . Crush 5 | . 5 . Escape Stasis . | . . . Rewire . | . . . Trap . | . . . Miscellaneous . | . . . Route ------- -11/Junkyard -10/Materials (discovered 2 exits: [*Mat] / [*Min]) -10/Mines History --------- Turn | Location | Event 4 | -11/Junkyard | Discovered new exit (range 0) 4 | -11/Junkyard | Entered Materials 215 | -10/Materials | Discovered new exit (range 13) 344 | -10/Materials | Build established: Mutant 466 | -10/Materials | Discovered new exit (range 16) 1317 | -10/Materials | Repaired Lgt. Treads 1392 | -10/Materials | Entered Mines 1433 | -10/Mines | Met a Derelict bent on vengeance 1447 | -10/Mines | Assembled infested the area 1562 | -10/Mines | Destroyed 13 combat bots 1662 | -10/Mines | Core integrity fell below 50% 1670 | -10/Mines | Core integrity fell below 20% 1676 | -10/Mines | Destroyed by D-53 Grenadier with Mini Grenade Launcher Last Messages --------------- 01554_ Found 28 Matter. 01555_ Acquired 28 matter. 01556_ K-01 Serf collects debris. 01558_ Acquired Med. Storage Unit. 01559_ Dropped Med. Storage Unit. 01561_ K-01 Serf collects debris. 01565_ Acquired 6 matter. 01567_ System corrupted: Substantial component data lost. 01570_ K-01 Serf collects debris. 01575_ Acquired 8 matter. 01605_ System corrupted: Component data lost. 01628_ I9LZX D &Q7NMQGEANQBOY0 25G/GQ2JM T NNNO 01650_ System corrupted: FCS attempts to trigger Imp. Light Cannon. 01650_ System corrupted: Imp. Light Cannon misfires. 01661_ Imp. Light Cannon destroyed. 01663_ D-53 Grenadier knocked back. 01663_ Hvy. Ion Engine destroyed. 01663_ Imp. Light Cannon destroyed. 01667_ D-53 Grenadier destroyed. 01672_ The unstable cave ceiling collapses. Map ----- +----------------------------------------------------+ | | | | | | | | | | | | | | | | | | | ???????????????????????????????????????????? | | ????????????#####??????????????????????????? | | ???????????## ###???????????????????????? | | ???????????# ##??????????????????????? | | ???????????# ##?????????????????????? | | ???????????## ######????????????????? | | ????????????###### ###??????????????? | | ?????????????????## ###????????????? | | ??????????????????# ##???????????? | | ??????????????????# #???????????? | | ??????????????????# #???????????? | | ??????????????????## ## #???????????? | | ???????????????????#### ##???????????? | | ????????????????????## #????????????? | | ????????????????????# #????????????? | | ????????????????##### ##????????????? | | ???????????????## ## @ #????????????? | | ???????????????# # #????????????? | | ???#### ######## % ##???????????? | | ???# % = % ########????? | | ???# %![! %d #????? | | ???# ###########% #????? | | ????????????????# ### = ##### ?????? | | ????????????????#["### #??????????? | | ???????????##???# ##?# ##??????????? | | ???????????# #### ##### ## ##???????????? | | ???# ### # %#?####?# ##????????????? | | ????# !!% #??????? #?????????????? | | ??????## %=%%% % #??????? #?????????????? | | ???????## !%###% ##??????? #?????????????? | | ????? # # #????????##?????????????? | | ????### # ## # #???????????????????????? | | ??????#?## ? ##### #??????????????????????? | | ?????????# ? ?????##??????????????????????? | | ????????? ? ?????????????????????????????? | | ????????## ? ?????????????????????????????? | | ?????????#?? ?????????????????????????????? | | ??????????? #?????????????????????????????? | | ???????????# ??????????????????????????????? | | ???????????#???????????????????????????????? | | ???????????????????????????????????????????? | +----------------------------------------------------+ Best States ------------- Heat Dissipation 35 Energy Generation 14 Energy Capacity 280 Matter Stores 300 Matter Capacity 300 Sight Range 16 Terrain Scan Density 10 Evasion (%) 40 Recoil Reduction 2 Item Schematics ----------------- None Robot Schematics ------------------ None Fabricated ------------ Nothing Alien Tech Used ----------------- None Achievements -------------- None Challenges ------------ None Game ------ Seed DisruptionControlSheargun Manual? 0 Play Time 00:07:29 Cumulative 1299.5 hours Start 2023.06.18 @ 21:59:09 End 2023.06.18 @ 22:06:28 Sessions 1 Manual Loads 0 Difficulty Rogue Special Mode None Game No. 936 Rogue 932 Adventurer 4 Explorer 0 Win Type - Total 149 Types 111/10/10/6/2/1/1/5/3 Lore% 97 Gallery% 98 Achievement% 98 Wizard Run 0 Options --------- ASCII 0 Keyboard 1 Movement Vi Keybinds 0 Fullscreen 0 Font 20/X11 Map View 76x50 Tactical HUD 1 Map Filters NONE Filters NONE Steam 1 RUN: eac0f8a9-ff02-4573-b78c-1839f2444526